Cogmind - Beta 13 @@@ ROGUE MODE // 2024.04.26 @ 06:41:20 Player: Khoroshiy Result: Destroyed by S-10 Pest with Light Assault Rifle Performance ------------- Evolutions (1) 500 Regions Visited (4) 800 Robots Destroyed (40) 200 Value Destroyed (788) 788 Prototype IDs (1) 20 Alien Tech Used (0) 0 Bonus (275) 275 TOTAL SCORE: 2583 Bonus ------- High Alert Combat Kills 75 Entered Garrisons 200 Cogmind --------- Core Integrity 0/400 Matter 126/300 Energy 190/200 System Corruption 3% Temperature Cool (0) Movement Flying (40) Location -9/Garrison Parts ------- > --- POWER (1) -------- (None) > --- PROPULSION (4) --- Improved Flight Unit > --- UTILITY (2) ------ Small Battery > --- WEAPON (2) ------- (None) > --- INVENTORY (5) ---- Hover Unit Hover Unit Hover Unit Peak State ------------ > --- POWER ------------ (None) > --- PROPULSION ------- Hover Unit Flight Unit VTOL Module Improved Flight Unit > --- UTILITY ---------- Small Storage Unit Weight Redist. System > --- WEAPON ----------- Light Assault Rifle EMP Blaster > --- INVENTORY -------- Hover Unit Hover Unit Flight Unit Flight Unit EMP Blaster [Rating: 13] Favorites ----------- Power Light Ion Engine Engine Light Ion Engine Propulsion Hover Unit Leg Aluminum Leg Hover Unit Hover Unit Flight Unit Flight Unit Utility Small Storage Unit Device Weight Redist. System Storage Small Storage Unit Processor Signal Interpreter Weapon Light Assault Rifle Energy Gun Small Laser Ballistic Gun Light Assault Rifle Launcher EMP Blaster Build | -11 -10 -9 -9 -9 ------- Run | Yrd Mat Mat Sto Gar Slots Evolved 2 | . . 2 . . Power . | . . . . . Propulsion 2 | . . 2 . . Utility . | . . . . . Weapon . | . . . . . Parts Attached 35 | 6 8 9 . 12 Power 3 | 1 . 1 . 1 Engine 3 | 1 . 1 . 1 Core . | . . . . . Reactor . | . . . . . Propulsion 17 | 2 5 3 . 7 Treads . | . . . . . Leg 2 | 2 . . . . Wheel . | . . . . . Hover 5 | . 2 3 . . Flight 10 | . 3 . . 7 Utility 4 | 1 1 1 . 1 Device 1 | . . 1 . . Storage 2 | 1 . . . 1 Processor 1 | . 1 . . . Hackware . | . . . . . Protection . | . . . . . Artifact . | . . . . . Weapon 11 | 2 2 4 . 3 Energy Gun 1 | 1 . . . . Energy Cannon . | . . . . . Ballistic Gun 2 | 1 . 1 . . Ballistic Cannon . | . . . . . Launcher 8 | . 2 3 . 3 Special Weapon . | . . . . . Impact Weapon . | . . . . . Slashing Weapon . | . . . . . Piercing Weapon . | . . . . . Special Melee Weapon . | . . . . . Unidentified Prototypes 1 | . . . . 1 Corrupted Parts 1 | . . . . 1 System Corruption 3 | . . . . 3 Parts Lost 14 | . . 6 . 8 Power 2 | . . 2 . . Propulsion 7 | . . 2 . 5 Utility 2 | . . . . 2 Weapon 3 | . . 2 . 1 Highest Loss Streak 8 | . . 2 . 8 To Critical Strikes . | . . . . . Average Slot Usage (%) 81 | . 80 90 77 67 Engine 9 | . 14 10 . . Leg 7 | . 16 . . . Hover 15 | . 2 36 33 . Flight 10 | . 8 . . 35 Device 4 | . . 6 11 7 Storage 11 | . 14 11 11 9 Processor 2 | . . 4 . . Energy Gun 2 | . 6 . . . Ballistic Gun 8 | . 13 2 11 9 Launcher 8 | . 3 18 11 3 Naked Turns . | . . . . . Heaviest Build 17 | 10 13 17 10 13 Greatest Support 24 | 20 20 24 18 13 Greatest Overweight (x) 4 | 3 2 . . 4 Average Overweight (x) . | . . . . . Largest Inventory Capacity 8 | 8 8 8 8 8 Average Capacity 7 | 7 8 8 8 7 Most Carried 8 | 4 8 7 6 6 Average Carried 5 | 2 5 5 6 5 Final Capacity 8 | 8 8 8 8 5 Final Carried 8 | 4 8 6 6 3 Class Distribution -------------------- 100% | Mutant Dominant Class ---------------- Mutant | -10/Materials Mutant | -9/Materials Mutant | -9/Storage Mutant | -9/Garrison Resources | -11 -10 -9 -9 -9 ----------- Run | Yrd Mat Mat Sto Gar Matter Collected 631 | 260 81 273 . 17 Remotely . | . . . . . Salvage Created 802 | . 132 541 . 129 Parts 80 | . 15 49 . 16 Haulers Intercepted . | . . . . . Recyclers Shooed . | . . . . . Parts Field Recycled . | . . . . . Retrieved Matter . | . . . . . Parts Self-Destructed . | . . . . . Prevented . | . . . . . Kills | -11 -10 -9 -9 -9 ------- Run | Yrd Mat Mat Sto Gar Combat Hostiles Destroyed 32 | . 3 20 . 9 Guns 2 | . 1 1 . . AOE 30 | . 2 19 . 9 Classes Destroyed 7 | . 4 3 . . Builder 1 | . . 1 . . Tunneler 2 | . 1 1 . . Recycler 2 | . 1 1 . . Watcher 3 | . 1 2 . . Swarmer 19 | . . 10 . 9 Grunt 9 | . 3 6 . . Sentry 4 | . . 4 . . Best Kill Streak 9 | . 4 7 . 9 Combat Bots Only 9 | . 2 4 . 9 Max Kills in Single Turn 5 | . 1 5 . 4 Gunslinging . | . . . . . Exploded 4 | . 1 4 . 4 Melee . | . . . . . Uniques/NPCs Destroyed . | . . . . . Combat | -11 -10 -9 -9 -9 -------- Run | Yrd Mat Mat Sto Gar Hostile Shots Fired 183 | . 12 70 . 101 Missed 76 | . 4 28 . 44 Damage Taken 1326 | . 92 557 . 677 Core 440 | . 36 104 . 300 Absorbed by Shields . | . . . . . Core Remaining (%) 92 | 100 85 . . . Volleys Fired 47 | . 11 30 . 6 Largest 2 | . 2 2 . 2 Hottest 66 | . 60 66 . 53 Shots Fired 69 | . 22 38 . 9 Gun 28 | . 16 6 . 6 Cannon . | . . . . . Launcher 41 | . 6 32 . 3 Special . | . . . . . Kinetic 23 | . 11 6 . 6 Thermal 5 | . 5 . . . Explosive 23 | . 6 17 . . Electromagnetic 18 | . . 15 . 3 Robot Hit Streak 9 | . 4 9 . 2 Robot Miss Streak 4 | . 3 4 . 4 Penetration Max . | . . . . . Secondary Targets . | . . . . . Shots Hit Robots 39 | . 12 23 . 4 Core Hits 66 | . 13 44 . 9 Critical Kills . | . . . . . Critical Parts Destroyed . | . . . . . Critical Strikes . | . . . . . Melee Attacks . | . . . . . Impact . | . . . . . Slashing . | . . . . . Piercing . | . . . . . Sneak Attacks . | . . . . . Combat Hostiles . | . . . . . Follow-up Attacks . | . . . . . Damage Inflicted 1983 | . 417 1223 . 343 Guns 119 | . 59 45 . 15 Cannons . | . . . . . Explosions 1864 | . 358 1178 . 328 Melee . | . . . . . Ramming . | . . . . . Kinetic 87 | . 27 45 . 15 Thermal 411 | . 32 232 . 147 Explosive 1010 | . 358 652 . . Electromagnetic 475 | . . 294 . 181 Impact . | . . . . . Slashing . | . . . . . Piercing . | . . . . . Highest Corruption 3 | . . . . 3 Average Corruption 3 | . . . . 3 Corruption Purged . | . . . . . Corruption Blocked . | . . . . . Overload Shots . | . . . . . Overflow Damage 16 | . . 16 . . Projectiles . | . . . . . Explosions 16 | . . 16 . . Melee . | . . . . . Knockbacks . | . . . . . Impact . | . . . . . Kinetic . | . . . . . Secondary . | . . . . . Self-Inflicted Damage 179 | . . 50 . 129 Shots 8 | . . 3 . 5 Rammed . | . . . . . Targets Rammed . | . . . . . Kicked . | . . . . . Crushed . | . . . . . Highest Temperature 58 | . 58 42 . 22 Average Temperature 13 | . 19 9 . 21 Received Heat Transfer 249 | . 48 165 . 36 Siege Activations . | . . . . . Robots Corrupted . | . . . . . Combat Hostiles . | . . . . . Parts Fried 1 | . . 1 . . Impact Corruptions . | . . . . . Robots Melted . | . . . . . Combat Hostiles . | . . . . . Parts Melted 1 | . . 1 . . Heat Transferred 775 | . 75 400 . 300 Parts Sabotaged . | . . . . . Parts Stolen . | . . . . . Parts Stripped . | . . . . . Power Chain Reactions 8 | . . 5 . 3 Alert | -11 -10 -9 -9 -9 ------- Run | Yrd Mat Mat Sto Gar Peak Influence 740 | . 139 740 312 524 Initial 308 | . . 58 308 202 Average 204 | . 80 349 308 316 Maximum Alert Level 3 | . . 3 1 2 Low Security (%) 59 | 100 100 36 . . Level 1 21 | . . 21 100 69 Level 2 17 | . . 38 . 30 Level 3 1 | . . 3 . . Level 4 . | . . . . . Level 5 . | . . . . . High Security . | . . . . . Max Security . | . . . . . Squads Dispatched 3 | . 1 2 . . Investigation 1 | . 1 . . . Extermination . | . . . . . Reinforcement 2 | . . 2 . . Assault . | . . . . . Garrison . | . . . . . Intercept . | . . . . . Searches Triggered . | . . . . . Construction Impeded . | . . . . . Haulers Reinforced . | . . . . . Active Scanning Responses . | . . . . . Cargo Convoy Interrupts . | . . . . . Stealth | -11 -10 -9 -9 -9 --------- Run | Yrd Mat Mat Sto Gar Distress Signals 3 | . 1 2 . . Communications Jammed . | . . . . . Distress Signals . | . . . . . Times Spotted 54 | . 5 23 . 26 Peak Tracking Total 17 | . 3 6 . 17 Tactical Retreats 4 | . . . . 4 Traps | -11 -10 -9 -9 -9 ------- Run | Yrd Mat Mat Sto Gar Traps Triggered 2 | . 1 . . 1 Indirectly . | . . . . . Trap Hack Attempts . | . . . . . Triggered . | . . . . . Disarmed . | . . . . . Reprogrammed . | . . . . . Reused . | . . . . . Traps Extracted . | . . . . . Installed . | . . . . . Triggered . | . . . . . Machines | -11 -10 -9 -9 -9 ---------- Run | Yrd Mat Mat Sto Gar Machines Disabled 2 | . . 1 . 1 Max in Single Turn 1 | . . 1 . 1 Machines Repaired . | . . . . . Machines Dismantled . | . . . . . Machines Sabotaged . | . . . . . Overloaded Fab Kills . | . . . . . Hacking | -11 -10 -9 -9 -9 --------- Run | Yrd Mat Mat Sto Gar Machines Accessed 8 | . 3 3 1 1 Terminals 7 | . 3 3 . 1 Fabricators . | . . . . . Repair Stations . | . . . . . Recycling Units . | . . . . . Scanalyzers . | . . . . . Garrison Access 1 | . . . 1 . Total Hacks 17 | . 10 4 1 2 Successful 4 | . 2 1 1 . Failed 13 | . 8 3 . 2 Catastrophic 6 | . 2 3 . 1 Database Lockouts . | . . . . . Manual 10 | . 8 2 . . Terminals 16 | . 10 4 . 2 Fabricators . | . . . . . Repair Stations . | . . . . . Recycling Units . | . . . . . Scanalyzers . | . . . . . Garrison Access 1 | . . . 1 . Terminal Hacks 3 | . 2 1 . . Zone Layout 3 | . 2 1 . . Fabricator Hacks . | . . . . . Repair Station Hacks . | . . . . . Recycling Unit Hacks . | . . . . . Scanalyzer . | . . . . . Garrison Access Hacks 1 | . . . 1 . Unlock Access 1 | . . . 1 . Unauthorized Hacks . | . . . . . Terminals . | . . . . . Fabricators . | . . . . . Repair Stations . | . . . . . Recycling Units . | . . . . . Scanalyzers . | . . . . . Garrison Access . | . . . . . Data Cores Recovered . | . . . . . Used . | . . . . . Hacking Detections 7 | . 3 3 . 1 Full Trace Events 2 | . 1 . . 1 Feedback Events . | . . . . . Feedback Blocked . | . . . . . Robot Schematics Acquired . | . . . . . Robots Built . | . . . . . Authchips . | . . . . . Time . | . . . . . Total Robot Build Rating . | . . . . . Part Schematics Acquired . | . . . . . Parts Built . | . . . . . Authchips . | . . . . . Time . | . . . . . Total Part Build Rating . | . . . . . Parts Repaired . | . . . . . Time . | . . . . . Parts Recycled . | . . . . . Recycled Matter . | . . . . . Retrieved Matter . | . . . . . Retrieved Components . | . . . . . Parts Scanalyzed . | . . . . . Part Schematics Acquired . | . . . . . Parts Damaged . | . . . . . Bothacking | -11 -10 -9 -9 -9 ------------ Run | Yrd Mat Mat Sto Gar Used RIF Installer . | . . . . . Robots Hacked . | . . . . . Non-combat . | . . . . . Combat . | . . . . . Robot Hacks Applied . | . . . . . Relay Couplers Released . | . . . . . Fabnet Peak Effective % . | . . . . . Robots Rewired . | . . . . . Allies Hacked . | . . . . . Hacks Repelled . | . . . . . Allies | -11 -10 -9 -9 -9 -------- Run | Yrd Mat Mat Sto Gar Total Allies . | . . . . . Largest Group . | . . . . . Highest-Rated Group . | . . . . . Highest-Rated Ally . | . . . . . Total Orders . | . . . . . Ally Attacks . | . . . . . Total Damage . | . . . . . Kills . | . . . . . Allies Corrupted . | . . . . . Allies Melted . | . . . . . Intel | -11 -10 -9 -9 -9 ------- Run | Yrd Mat Mat Sto Gar Robot Analysis Total . | . . . . . Derelict Logs Recovered . | . . . . . Drone Launches . | . . . . . Drone Recoveries . | . . . . . Exploration | -11 -10 -9 -9 -9 ------------- Run | Yrd Mat Mat Sto Gar Turns Passed 779 | 78 298 247 19 137 Spaces Moved 821 | 58 225 290 36 212 Core 19 | 15 . . . 4 Treads . | . . . . . Legs 158 | 43 115 . . . Wheels . | . . . . . Hover 372 | . 46 290 36 . Flight 272 | . 64 . . 208 Fastest Speed 32 | 50 56 48 52 32 Average Speed 67 | 113 106 50 52 40 Slowest Speed 250 | 200 200 52 52 250 Overloaded Moves . | . . . . . Propulsion Burnouts . | . . . . . Robots Hopped 2 | . . . . 2 Cave-ins Triggered . | . . . . . Exploration Rate (%) 20 | 5 33 26 7 32 Regions Visited 4 Branch Regions 1 Pre-discovered Areas . | . . . . . Known Exits Taken 2 | . 1 . 1 . Unknown Exits Taken 2 | 1 . 1 . . Scrap Searched . | . . . . . Spaces Dug . | . . . . . Terrain Destroyed 147 | . 36 104 . 7 Melee . | . . . . . Projectile . | . . . . . AOE 147 | . 36 104 . 7 Terrain Rammed . | . . . . . Walls Destroyed . | . . . . . Machines Disabled . | . . . . . Actions | -11 -10 -9 -9 -9 --------- Run | Yrd Mat Mat Sto Gar Total 969 | 67 264 353 35 250 Wait 37 | . 2 15 . 20 Move 814 | 57 224 289 35 209 Hop 1 | . . . . 1 Pick Up 19 | 4 8 7 . . Fast Attach 16 | 6 6 1 . 3 Attach 13 | . 1 7 . 5 Detach 3 | . 1 . . 2 Swap 6 | . 1 1 . 4 Drop 13 | . 10 3 . . Fire 47 | . 11 30 . 6 Melee . | . . . . . Ram . | . . . . . Kick . | . . . . . Crush . | . . . . . Escape Stasis . | . . . . . Rewire . | . . . . . Trap . | . . . . . Miscellaneous . | . . . . . Route ------- -11/Scrapyard -10/Materials -9/Materials -9/Storage -9/Garrison History --------- Turn | Location | Event 16 | -11/Scrapyard | Discovered new exit (range 16) 79 | -11/Scrapyard | Entered Materials 302 | -10/Materials | Build established: Mutant 328 | -10/Materials | Discovered new exit (range 9) 377 | -10/Materials | Identified exit to Materials 377 | -10/Materials | Entered another Materials area 377 | -9/Materials | Evolved 2 slots: Propulsion x2 576 | -9/Materials | Discovered new exit (range 14) 624 | -9/Materials | Entered Storage 642 | -9/Storage | Identified exit to Garrison 643 | -9/Storage | Entered Garrison 693 | -9/Garrison | Triggered checkpoint 703 | -9/Garrison | Triggered checkpoint 707 | -9/Garrison | Triggered checkpoint 737 | -9/Garrison | Core integrity fell below 50% 763 | -9/Garrison | Core integrity fell below 20% 769 | -9/Garrison | Destroyed 9 combat bots 773 | -9/Garrison | Triggered checkpoint 780 | -9/Garrison | Destroyed by S-10 Pest with Light Assault Rifle Last Messages --------------- Triggered Alarm Trap. An alarm sounds. Acquired Lgt. Ion Engine. Acquired 3 matter. Sml. Storage Unit destroyed. Acquired Corrupted Flight Unit. Integrated Corrupted Flight Unit (+3). Complication: Lgt. Ion Engine rejected. Complication: EMP Blaster rejected. Complication: Lgt. Assault Rifle rejected. Flight Unit destroyed. G-34 Mercenary destroyed. Acquired 14 matter. VTOL Module destroyed. Flight Unit destroyed. Beams of light sweep through the air. An alarm sounds. C-30 ARC bursts open, deploying its payload. S-10 Pest unfolds itself. Acquired Sml. Battery. Map ----- +----------------------------------------------------+ | | | | | | | | | | | | | | | ????????????????????????????????? | | ????????????????????????????????? | | ????????????????????????????????? | | ????????????????????????????????? | | ????????????????????????????????? | | ????????????????????????????????? | | ????????????????????????????????? | | ????????????????????????????????? | | ????????????????????????????????? | | ????????????????????????????????? | | ????????????????????????????????? | | ????????????????????????????????? | | ????????????????????????????????? | | ????????????????????????????????? | | ?????????????????????###????????? | | ??????#####????????? #????????? | | ??????#!!!##"""##### "%#####"""## | | ??????#! sssss " | | ??????#!@!####################### | | ??????#####?????????????????????? | | ????????????????????????????????? | | ????????????????????????????##### | | ????????????????????????????# [* | | ????????????????????????????# | | ????????????????????????????# [ | | ????????????????????????????##### | | ????????????????????????????????? | | ????????????????????????????????? | | ????????????????????? ########## | | ???????????????????? | | ???????????????????? | | ???????????????????? | | ??????????????????????######"""## | | ????????????????????????????????? | | ????????????????????????????????? | | ????????????????????????????????? | | ????????????????????????????????? | | ????????????????????????????????? | | ????????????????????????????????? | | ????????????????????????????????? | | ????????????????????????????????? | | ????????????????????????????????? | | ????????????????????????????????? | +----------------------------------------------------+ Best States ------------- Heat Dissipation 28 Energy Generation 10 Energy Capacity 250 Matter Stores 300 Matter Capacity 300 Sight Range 16 Terrain Scan Density 10 Additional Mass Support 6 Evasion (%) 63 Item Schematics ----------------- None Robot Schematics ------------------ None Fabricated ------------ Nothing Alien Tech Used ----------------- None Achievements -------------- None Challenges ------------ None Game ------ Seed CobblerThunderReconstructor Manual? 0 Play Time 00:18:24 Cumulative 12.3 hours Start 2024.04.26 @ 06:26:26 End 2024.04.26 @ 06:41:20 Sessions 1 Manual Loads 0 Difficulty Rogue Special Mode None Game No. 16 Rogue 16 Adventurer 0 Explorer 0 Win Type - Total 0 Types 0/0/0/0/0/0/0/0/0 Lore% 23 Gallery% 18 Achievement% 22 Wizard Run 0 Options --------- Layout 1 ASCII 0 Keyboard 0 Movement Arrows Keybinds 0 Fullscreen 1 Font 24/Smallcaps Map View 50x35 Zoom Use 0% Tactical HUD 0 Map Filters NONE Filters NONE Steam 0 RUN: 18cc29ba-e6f9-476e-9631-5616119f578a